Cogmind - Beta 13 @@@ ROGUE MODE // 2024.04.16 @ 21:55:28 Player: Zedx Result: Destroyed by G-34 Mercenary with Small Laser Performance ------------- Evolutions (0) 0 Regions Visited (1) 200 Robots Destroyed (4) 20 Value Destroyed (149) 149 Prototype IDs (0) 0 Alien Tech Used (0) 0 Bonus (0) 0 TOTAL SCORE: 369 Bonus ------- None Cogmind --------- Core Integrity 0/250 Matter 250/300 Energy 160/160 System Corruption 0% Temperature Cool (15) Movement Walking (120) Location -10/Materials Parts ------- > --- POWER (1) -------- Light Nuclear Core > --- PROPULSION (2) --- Aluminum Leg Aluminum Leg > --- UTILITY (2) ------ Improved Heat Sink Small Storage Unit > --- WEAPON (2) ------- Small Laser Particle Gun > --- INVENTORY (8) ---- Aluminum Leg Aluminum Leg Aluminum Leg Heat Sink Small Laser Peak State ------------ > --- POWER ------------ Light Nuclear Core > --- PROPULSION ------- Aluminum Leg Aluminum Leg > --- UTILITY ---------- Improved Heat Sink Small Storage Unit > --- WEAPON ----------- Small Laser Particle Gun > --- INVENTORY -------- Aluminum Leg Aluminum Leg Aluminum Leg Heat Sink Small Laser [Rating: 12] Favorites ----------- Power Ion Engine Engine Ion Engine Power Core Light Nuclear Core Propulsion Aluminum Leg Leg Aluminum Leg Utility Small Storage Unit Device Heat Sink Storage Small Storage Unit Weapon Small Laser Energy Gun Small Laser Build | -11 -10 ------- Run | Yrd Mat Slots Evolved . | . . Power . | . . Propulsion . | . . Utility . | . . Weapon . | . . Parts Attached 17 | 6 11 Power 3 | 1 2 Engine 2 | 1 1 Core 1 | . 1 Reactor . | . . Propulsion 5 | 2 3 Treads . | . . Leg 5 | 2 3 Wheel . | . . Hover . | . . Flight . | . . Utility 3 | 1 2 Device 2 | . 2 Storage 1 | 1 . Processor . | . . Hackware . | . . Protection . | . . Artifact . | . . Weapon 6 | 2 4 Energy Gun 6 | 2 4 Energy Cannon . | . . Ballistic Gun . | . . Ballistic Cannon . | . . Launcher . | . . Special Weapon . | . . Impact Weapon . | . . Slashing Weapon . | . . Piercing Weapon . | . . Special Melee Weapon . | . . Unidentified Prototypes . | . . Parts Lost 5 | . 5 Power 2 | . 2 Propulsion . | . . Utility . | . . Weapon 3 | . 3 Highest Loss Streak 3 | . 3 To Critical Strikes . | . . Average Slot Usage (%) 83 | . 83 Engine 5 | . 5 Core 1 | . 1 Leg 28 | . 28 Device 7 | . 7 Storage 14 | . 14 Energy Gun 25 | . 25 Naked Turns . | . . Heaviest Build 15 | 14 15 Greatest Support 20 | 20 20 Greatest Overweight (x) 1 | 1 . Average Overweight (x) . | . . Largest Inventory Capacity 8 | 8 8 Average Capacity 7 | 7 8 Most Carried 7 | 4 7 Average Carried 3 | 2 3 Final Capacity 8 | 8 8 Final Carried 5 | 2 5 Class Distribution -------------------- 56% | Scavenger-Mutant 43% | Mutant Dominant Class ---------------- Scavenger-Mutant | -10/Materials Resources | -11 -10 ----------- Run | Yrd Mat Matter Collected 315 | 250 65 Remotely . | . . Salvage Created 185 | . 185 Parts 10 | . 10 Haulers Intercepted . | . . Recyclers Shooed 1 | . 1 Parts Field Recycled . | . . Retrieved Matter . | . . Parts Self-Destructed . | . . Prevented . | . . Kills | -11 -10 ------- Run | Yrd Mat Combat Hostiles Destroyed 4 | . 4 Guns 3 | . 3 AOE 1 | . 1 Classes Destroyed 1 | . 1 Grunt 4 | . 4 Best Kill Streak 2 | . 2 Combat Bots Only 2 | . 2 Max Kills in Single Turn 1 | . 1 Gunslinging . | . . Exploded 1 | . 1 Melee . | . . Uniques/NPCs Destroyed . | . . Combat | -11 -10 -------- Run | Yrd Mat Hostile Shots Fired 79 | . 79 Missed 20 | . 20 Damage Taken 872 | . 872 Core 251 | . 251 Absorbed by Shields . | . . Core Remaining (%) 100 | 100 . Volleys Fired 35 | . 35 Largest 2 | . 2 Hottest 105 | . 105 Shots Fired 51 | . 51 Gun 51 | . 51 Cannon . | . . Launcher . | . . Special . | . . Kinetic . | . . Thermal 35 | . 35 Explosive . | . . Electromagnetic 16 | . 16 Robot Hit Streak 11 | . 11 Robot Miss Streak 2 | . 2 Penetration Max . | . . Secondary Targets . | . . Shots Hit Robots 39 | . 39 Core Hits 11 | . 11 Critical Kills . | . . Critical Parts Destroyed . | . . Critical Strikes . | . . Melee Attacks . | . . Impact . | . . Slashing . | . . Piercing . | . . Sneak Attacks . | . . Combat Hostiles . | . . Follow-up Attacks . | . . Damage Inflicted 526 | . 526 Guns 484 | . 484 Cannons . | . . Explosions 42 | . 42 Melee . | . . Ramming . | . . Kinetic . | . . Thermal 371 | . 371 Explosive . | . . Electromagnetic 155 | . 155 Impact . | . . Slashing . | . . Piercing . | . . Highest Corruption . | . . Average Corruption . | . . Corruption Purged . | . . Corruption Blocked . | . . Overload Shots . | . . Overflow Damage . | . . Projectiles . | . . Explosions . | . . Melee . | . . Knockbacks . | . . Impact . | . . Kinetic . | . . Secondary . | . . Self-Inflicted Damage 20 | . 20 Shots 1 | . 1 Rammed . | . . Targets Rammed . | . . Kicked . | . . Crushed . | . . Highest Temperature 167 | . 167 Average Temperature 106 | . 106 Received Heat Transfer 465 | . 465 Siege Activations . | . . Robots Corrupted . | . . Combat Hostiles . | . . Parts Fried . | . . Impact Corruptions . | . . Robots Melted . | . . Combat Hostiles . | . . Parts Melted 1 | . 1 Heat Transferred 787 | . 787 Parts Sabotaged . | . . Parts Stolen . | . . Parts Stripped . | . . Power Chain Reactions 1 | . 1 Alert | -11 -10 ------- Run | Yrd Mat Peak Influence 111 | . 111 Initial . | . . Average 46 | . 54 Maximum Alert Level . | . . Low Security (%) 100 | 100 100 Level 1 . | . . Level 2 . | . . Level 3 . | . . Level 4 . | . . Level 5 . | . . High Security . | . . Max Security . | . . Squads Dispatched 2 | . 2 Investigation 1 | . 1 Extermination . | . . Reinforcement 1 | . 1 Assault . | . . Garrison . | . . Intercept . | . . Searches Triggered . | . . Construction Impeded . | . . Haulers Reinforced . | . . Active Scanning Responses . | . . Cargo Convoy Interrupts . | . . Stealth | -11 -10 --------- Run | Yrd Mat Distress Signals 1 | . 1 Communications Jammed . | . . Distress Signals . | . . Times Spotted 12 | . 12 Peak Tracking Total 4 | . 4 Tactical Retreats 2 | . 2 Traps | -11 -10 ------- Run | Yrd Mat Traps Triggered 2 | . 2 Indirectly . | . . Trap Hack Attempts . | . . Triggered . | . . Disarmed . | . . Reprogrammed . | . . Reused . | . . Traps Extracted . | . . Installed . | . . Triggered 1 | . 1 Machines | -11 -10 ---------- Run | Yrd Mat Machines Disabled . | . . Max in Single Turn . | . . Machines Repaired . | . . Machines Dismantled . | . . Machines Sabotaged . | . . Overloaded Fab Kills . | . . Hacking | -11 -10 --------- Run | Yrd Mat Machines Accessed 1 | . 1 Terminals 1 | . 1 Fabricators . | . . Repair Stations . | . . Recycling Units . | . . Scanalyzers . | . . Garrison Access . | . . Total Hacks 3 | . 3 Successful 1 | . 1 Failed 2 | . 2 Catastrophic . | . . Database Lockouts . | . . Manual . | . . Terminals 3 | . 3 Fabricators . | . . Repair Stations . | . . Recycling Units . | . . Scanalyzers . | . . Garrison Access . | . . Terminal Hacks 1 | . 1 Zone Layout 1 | . 1 Fabricator Hacks . | . . Repair Station Hacks . | . . Recycling Unit Hacks . | . . Scanalyzer . | . . Garrison Access Hacks . | . . Unauthorized Hacks . | . . Terminals . | . . Fabricators . | . . Repair Stations . | . . Recycling Units . | . . Scanalyzers . | . . Garrison Access . | . . Data Cores Recovered . | . . Used . | . . Hacking Detections 1 | . 1 Full Trace Events . | . . Feedback Events . | . . Feedback Blocked . | . . Robot Schematics Acquired . | . . Robots Built . | . . Authchips . | . . Time . | . . Total Robot Build Rating . | . . Part Schematics Acquired . | . . Parts Built . | . . Authchips . | . . Time . | . . Total Part Build Rating . | . . Parts Repaired . | . . Time . | . . Parts Recycled . | . . Recycled Matter . | . . Retrieved Matter . | . . Retrieved Components . | . . Parts Scanalyzed . | . . Part Schematics Acquired . | . . Parts Damaged . | . . Bothacking | -11 -10 ------------ Run | Yrd Mat Used RIF Installer . | . . Robots Hacked . | . . Non-combat . | . . Combat . | . . Robot Hacks Applied . | . . Relay Couplers Released . | . . Fabnet Peak Effective % . | . . Robots Rewired . | . . Allies Hacked . | . . Hacks Repelled . | . . Allies | -11 -10 -------- Run | Yrd Mat Total Allies . | . . Largest Group . | . . Highest-Rated Group . | . . Highest-Rated Ally . | . . Total Orders . | . . Ally Attacks . | . . Total Damage . | . . Kills . | . . Allies Corrupted . | . . Allies Melted . | . . Intel | -11 -10 ------- Run | Yrd Mat Robot Analysis Total . | . . Derelict Logs Recovered . | . . Drone Launches . | . . Drone Recoveries . | . . Exploration | -11 -10 ------------- Run | Yrd Mat Turns Passed 428 | 65 363 Spaces Moved 225 | 35 190 Core 5 | 5 . Treads . | . . Legs 220 | 30 190 Wheels . | . . Hover . | . . Flight . | . . Fastest Speed 50 | 50 120 Average Speed 122 | 138 120 Slowest Speed 190 | 190 120 Overloaded Moves . | . . Propulsion Burnouts . | . . Robots Hopped . | . . Cave-ins Triggered . | . . Exploration Rate (%) 16 | 3 30 Regions Visited 1 Branch Regions . Pre-discovered Areas . | . . Known Exits Taken . | . . Unknown Exits Taken 1 | 1 . Scrap Searched . | . . Spaces Dug . | . . Terrain Destroyed 6 | . 6 Melee . | . . Projectile . | . . AOE 6 | . 6 Terrain Rammed . | . . Walls Destroyed . | . . Machines Disabled . | . . Actions | -11 -10 --------- Run | Yrd Mat Total 323 | 51 272 Wait 26 | 3 23 Move 224 | 34 190 Hop . | . . Pick Up 19 | 8 11 Fast Attach . | . . Attach 12 | 6 6 Detach . | . . Swap 5 | . 5 Drop 2 | . 2 Fire 35 | . 35 Melee . | . . Ram . | . . Kick . | . . Crush . | . . Escape Stasis . | . . Rewire . | . . Trap . | . . Miscellaneous . | . . Route ------- -11/Scrapyard -10/Materials (discovered 2 exits: [*Mat] / [*Min]) History --------- Turn | Location | Event 25 | -11/Scrapyard | Discovered new exit (range 14) 66 | -11/Scrapyard | Entered Materials 116 | -10/Materials | Discovered new exit (range 7) 196 | -10/Materials | Core integrity fell below 50% 209 | -10/Materials | Lost 3 parts (1p2w) 325 | -10/Materials | Discovered new exit (range 4) 361 | -10/Materials | Core integrity fell below 20% 429 | -10/Materials | Destroyed by G-34 Mercenary with Small Laser Last Messages --------------- 00229_ Acquired 35 matter. 00271_ Aluminum Leg melted. 00271_ G-34 Mercenary destroyed. 00311_ Dropped Corrupted Aluminum Leg. 00325_ EXIT=FOUND 00360_ Triggered Explosive Trap. 00360_ An explosion rips through the floor. 00361_ K-01 Serf cleans the Nuclear Reactor. 00362_ Triggered Explosive Trap. 00362_ An explosion rips through the floor. 00362_ Sml. Laser destroyed. 00372_ G-47 Trooper destroyed. 00375_ Acquired Aluminum Leg. 00377_ Acquired Imp. Heat Sink. 00381_ Acquired Particle Gun. 00383_ Acquired Lgt. Nuclear Core. 00405_ W-16 Scout sends out distress signal. 00411_ U-05 Engineer lays Concrete. 00419_ K-01 Serf cleans the Nuclear Reactor. Map ----- +----------------------------------------------------+ | | | | | | | | | | | ???????????????????????????????????????????? | | ???????????????????????????????????????????? | | ???????????????????????????????????????????? | | ?#####################?????????????????????? | | ?# ## #?????????????????????? | | ?# ## < #?????????????????????? | | ?# ## #?????????????????????? | | ?# ###### #?????????????????????? | | ?# #????# #?????????????????????? | | ?# ###### #?????????????????????? | | ?# #?????????????????????? | | ## #?????????????????????? | | # ^ #?????????????????????? | | ## #?????????????????????? | | # """ """ """ ##########+#??????????? | | ## """ """ """ ????????? | | # """ """ """ ????????? | | ### % ????????? | | ??# gg #### ?????????? | | ??# ############g#### #??????????????? | | ### ###?#= =@ # #??????????????? | | # #?# #? #??????????????? | | # #?# #? #??????????????? | | # ### """ """k #?? #??????????????? | | # + """ """ #?? #??????????????? | | # ### """ """ #??? #??????????????? | | # #?# #?????#??????????????? | | # #?#############????????????????????? | | ### ###??????????????????????????????????? | | ??# #????????????????????????????????????? | | ??# #????????????????????????????????????? | | ??# #????????????????????????????????????? | | ??# #????????????????????????????????????? | | ??# #????????????????????????????????????? | | ??# #????????????????????????????????????? | | ??# #????????????????????????????????????? | | ??# ######???????????????????????????????? | | ??# % #???????????????????????????????? | | ??######## #???????????????????????????????? | | ?????????# #???????????????????????????????? | | ?######### ###?????????????????????????????? | | ?# # #?####+#####??????????????????? | | ?# # ### T #??????????????????? | | ?# # < + """ #??????????????????? | | ?# """ # ### """ #??????????????????? | +----------------------------------------------------+ Best States ------------- Heat Dissipation 39 Energy Generation 14 Energy Capacity 250 Matter Stores 300 Matter Capacity 300 Sight Range 16 Terrain Scan Density 10 Evasion (%) 55 Item Schematics ----------------- None Robot Schematics ------------------ None Fabricated ------------ Nothing Alien Tech Used ----------------- None Achievements -------------- None Challenges ------------ None Game ------ Seed ExoskeletonHardenedMeganuke Manual? 0 Play Time 00:07:43 Cumulative 12.1 hours Start 2024.04.16 @ 21:49:49 End 2024.04.16 @ 21:55:28 Sessions 1 Manual Loads 0 Difficulty Rogue Special Mode None Game No. 17 Rogue 17 Adventurer 0 Explorer 0 Win Type - Total 0 Types 0/0/0/0/0/0/0/0/0 Lore% 17 Gallery% 17 Achievement% 14 Wizard Run 0 Options --------- Layout 1 ASCII 0 Keyboard 1 Movement Numpad Keybinds 0 Fullscreen 1 Font 24/Smallcaps Map View 50x35 Zoom Use 0% Tactical HUD 1 Map Filters NONE Filters NONE Steam 1 RUN: 4643eaae-567e-49d1-97b5-1eaabcaec19c